fUSD/lending_fUSD_20260108
["ID","MTS","AMOUNT","RATE_DAILY","PERIOD"]
[400896149,1767856973786,-500.0,0.00012328,2]
[400896150,1767856973864,-500.0,0.00012328,2]
[400896151,1767856973944,-500.0,0.00012328,2]
[400896152,1767856974691,-299.24058396,0.00012328,2]
[400896153,1767856974835,-200.75941604,0.00012328,2]
[400896154,1767856974915,-500.0,0.00012328,2]
[400896155,1767856975006,-500.0,0.00012328,2]
[400896156,1767856975082,-500.0,0.00012328,2]
[400896157,1767856975158,-500.0,0.00012328,2]
[400896158,1767856975235,-500.0,0.00012328,2]
[400896159,1767856975319,-500.0,0.00012328,2]
[400896160,1767856975403,-500.0,0.00012328,2]
[400896161,1767856975487,-500.0,0.00012328,2]
[400896162,1767856975584,-500.0,0.00012328,2]
[400896163,1767856975664,-98.49116792,0.00012328,2]
[400896164,1767856975924,-401.50883208,0.00012328,2]
[400896165,1767856976001,-500.0,0.00012328,2]
[400896166,1767856976081,-500.0,0.00012328,2]
[400896167,1767856976158,-500.0,0.00012328,2]
[400896168,1767856976235,-500.0,0.00012328,2]
[400896169,1767856976315,-500.0,0.00012328,2]
[400896170,1767856976397,-500.0,0.00012328,2]
[400896171,1767856976477,-500.0,0.00012328,2]
[400896172,1767856976556,-500.0,0.00012328,2]
[400896173,1767856976634,-500.0,0.00012328,2]
[400896174,1767856976897,-500.0,0.00012328,2]
[400896176,1767856976972,-500.0,0.00012328,2]
[400896177,1767856977049,-500.0,0.00012328,2]
[400896178,1767856977124,-243.98635151,0.00012328,2]
[400896179,1767856977201,-500.0,0.00012328,2]
[400896180,1767856977281,-500.0,0.00012328,2]
[400896182,1767856977360,-500.0,0.00012328,2]
[400896183,1767856977435,-500.0,0.00012328,2]
[400896184,1767856977511,-500.0,0.00012328,2]
[400896185,1767856977587,-500.0,0.00012328,2]
[400896186,1767856977660,-12.03729698,0.00012328,2]
[400896188,1767856977856,-487.96270302,0.00012328,2]
[400896189,1767856977931,-500.0,0.00012328,2]
[400896190,1767856978007,-500.0,0.00012328,2]
[400896191,1767856978085,-500.0,0.00012328,2]
[400896192,1767856978159,-500.0,0.00012328,2]
[400896193,1767856978236,-500.0,0.00012328,2]
[400896194,1767856978319,-500.0,0.00012328,2]
[400896195,1767856978403,-500.0,0.00012328,2]
[400896196,1767856978484,-500.0,0.00012328,2]
[400896197,1767856978565,-500.0,0.00012328,2]
[400896198,1767856978845,-500.0,0.00012328,2]
[400896199,1767856978924,-500.0,0.00012328,2]
[400896200,1767856979008,-500.0,0.00012328,2]
[400896201,1767856979091,-500.0,0.00012328,2]
[400896202,1767856979168,-500.0,0.00012328,2]
[400896203,1767856979244,-500.0,0.00012328,2]
[400896204,1767856979325,-500.0,0.00012328,2]
[400896205,1767856979409,-500.0,0.00012328,2]
[400896206,1767856979490,-500.0,0.00012328,2]
[400896207,1767856979569,-500.0,0.00012328,2]
[400896208,1767856979963,-500.0,0.00012328,2]
[400896209,1767856980039,-500.0,0.00012328,2]
[400896210,1767856980122,-500.0,0.00012328,2]
[400896211,1767856980204,-500.0,0.00012328,2]
[400896212,1767856980298,-500.0,0.00012328,2]
[400896213,1767856980393,-500.0,0.00012328,2]
[400896214,1767856980480,-350.0,0.00012328,2]
[400896215,1767856980565,-500.0,0.00012328,2]
[400896216,1767856980651,-500.0,0.00012328,2]
[400896217,1767856980734,-500.0,0.00012328,2]
[400896218,1767856982142,999.0,0.00012657,3]
[400896219,1767856985254,-169.58977755,0.00012328,2]
[400896220,1767856985320,-330.41022245,0.00012328,2]
[400896221,1767856985331,-169.58977755,0.00012328,2]
[400896222,1767856985398,-330.41022245,0.00012328,2]
[400896223,1767856985408,-169.58977755,0.00012328,2]
[400896224,1767856985477,-30.41022245,0.00012328,2]
[400896225,1767856985490,-200.0,0.00012329,2]
[400896226,1767857039823,-340.540008,0.00012229,2]
[400896227,1767857039887,-1200.0,0.00012328,2]
[400896228,1767857039952,-195.0,0.00012328,2]
[400896229,1767857040015,-193.0,0.00012328,2]
[400896230,1767857040090,-250.0,0.00012329,2]
[400896231,1767857042053,300.0,0.00012328,2]
[400896233,1767857042403,150.0,0.00012328,2]
[400896243,1767857086113,-287.14072132,0.00012229,2]
[400896244,1767857086174,-287.14072132,0.00012229,2]
[400896245,1767857098427,2500.0,0.00012229,2]
[400896246,1767857101386,270.0,0.00012328,2]
[400896247,1767857101463,1200.0,0.00012328,2]
[400896248,1767857102021,300.0,0.00012328,2]
[400896252,1767857176945,227.026672,0.00012229,2]
[400896256,1767857198507,457.22,0.00016,14]
[400896257,1767857199204,548.67,0.00015,3]
[400896259,1767857199907,274.97,0.000145,3]
[400896265,1767857222159,150.0,0.00012328,2]
[400896266,1767857223369,500.0,0.00012328,2]
[400896267,1767857223470,500.0,0.00012328,2]
[400896268,1767857223570,500.0,0.00012328,2]
[400896269,1767857223668,500.0,0.00012328,2]
[400896270,1767857223765,500.0,0.00012328,2]
[400896271,1767857223868,532.52681654,0.00012328,2]
[400896272,1767857223980,500.0,0.00012328,2]
[400896273,1767857224075,500.0,0.00012328,2]
[400896275,1767857233487,171.89362618,0.00012329,2]
[400896276,1767857233571,28.10637382,0.00012329,2]
[400896277,1767857237318,500.0,0.00012329,2]
[400896278,1767857237841,9471.90362618,0.00012229,2]
[400896280,1767857272787,1821.16272437,0.00011848,2]
[400896281,1767857272809,5267.20072437,0.00011848,2]
[400896282,1767857272831,5267.20072437,0.00011848,2]
[400896283,1767857272852,5267.20072437,0.00011848,2]
[400896284,1767857272876,1452.78510252,0.00011848,2]
[400896287,1767857298509,5990.99,0.00011854,2]
[400896291,1767857351715,-1200.0,0.00012228,2]
[400896292,1767857351789,-300.0,0.00012228,2]
[400896293,1767857351857,-2428.5729,0.00012228,2]
[400896294,1767857351925,-300.0,0.00012229,2]
[400896295,1767857351994,-195.0,0.00012229,2]
[400896296,1767857353467,-889.27260925,0.00012229,2]
[400896297,1767857354721,-4996.45044236,0.00012229,2]
[400896298,1767857358560,-7.10911528,0.00012229,2]
[400896299,1767857358647,-215.35554099,0.00012229,2]
[400896300,1767857358734,-151.35111466,0.00012229,2]
[400896301,1767857358824,-195.0,0.00012229,2]
[400896302,1767857358914,-188.94617776,0.00012229,2]
[400896303,1767857362371,-328.03260426,0.00012229,2]
[400896304,1767857366205,-233.23822761,0.00012229,2]
[400896305,1767857368285,-207.08957226,0.00012229,2]
[400896306,1767857370501,-172.36715775,0.00012229,2]
[400896307,1767857371981,-235.66563197,0.00012229,2]
[400896308,1767857374003,-154.74431651,0.00012229,2]
[400896309,1767857375280,8484.48610262,0.00012189,2]
[400896310,1767857375353,8635.60389602,0.00012189,2]
[400896311,1767857375645,-240.01522619,0.00012229,2]
[400896312,1767857377188,-302.0,0.00012229,2]
[400896314,1767857393026,-427.8485849,0.00012229,2]
[400896315,1767857394652,-292.97250298,0.00012229,2]
[400896316,1767857397549,-176.60971943,0.00012229,2]
[400896317,1767857398975,-196.84127733,0.00012229,2]
[400896318,1767857400542,-378.9886536,0.00012229,2]
[400896319,1767857401883,300.0,0.00012228,2]
[400896320,1767857401975,300.0,0.00012228,2]
[400896321,1767857402064,764.40610398,0.00012228,2]
[400896322,1767857402138,435.59389602,0.00012228,2]
[400896323,1767857402302,150.0,0.00012228,2]
[400896324,1767857402729,-294.46587476,0.00012229,2]
[400896325,1767857403898,250.0,0.00012229,2]
[400896326,1767857406840,-244.0,0.00012229,2]
[400896327,1767857409724,-189.01438501,0.00012229,2]
[400896328,1767857411252,-534.92150026,0.00012229,2]
[400896329,1767857412881,-569.84960584,0.00012229,2]
[400896330,1767857415352,-200.0,0.00012229,2]
[400896331,1767857416898,-256.0,0.00012229,2]
[400896332,1767857418428,-243.52120664,0.00012229,2]
[400896333,1767857422266,233.13011965,0.00012159,2]
[400896334,1767857431696,-364.52829314,0.00012229,2]
[400896341,1767857431800,-1949.85925956,0.00012229,2]
[400896342,1767857431809,-2500.0,0.00012229,2]
[400896343,1767857431819,-236.5514,0.00012229,2]
[400896344,1767857431828,-739.45141583,0.00012229,2]
[400896345,1767857431840,-6513.15560109,0.00012229,2]
[400896346,1767857431904,-863.70220047,0.00012229,2]
[400896347,1767857431916,-634.6577525,0.00012229,2]
[400896351,1767857436446,8931.28598433,0.00011802,2]
[400896352,1767857436513,7383.41401567,0.00011802,2]
[400896353,1767857437430,-250.924,0.00012229,2]
[400896354,1767857437776,-7410.48326695,0.00012229,2]
[400896355,1767857437797,-305.96311241,0.00012229,2]
[400896356,1767857437968,-983281.66265075,0.00012229,2]
[400896357,1767857437978,-300.0,0.00012259,2]
[400896358,1767857437988,-195.0,0.00012289,2]
[400896359,1767857437998,-300.0,0.00012301,2]
[400896360,1767857438009,-500.0,0.00012328,2]
[400896361,1767857438019,-500.0,0.00012328,2]
[400896362,1767857438029,-500.0,0.00012328,2]
[400896363,1767857438038,-500.0,0.00012328,2]
[400896364,1767857438047,-500.0,0.00012328,2]
[400896365,1767857438057,-500.0,0.00012328,2]
[400896366,1767857438066,-500.0,0.00012328,2]
[400896367,1767857438075,-500.0,0.00012328,2]
[400896368,1767857438085,-500.0,0.00012328,2]
[400896369,1767857438094,-500.0,0.00012328,2]
[400896370,1767857438104,-306.121,0.00012328,2]
[400896371,1767857438113,-325.73301495,0.00012328,2]
[400896372,1767857438122,-200.0,0.00012329,2]
[400896373,1767857438133,-156.8049795,0.00012329,2]
[400896374,1767857438142,-151.0,0.00012329,2]
[400896375,1767857438152,-151.0,0.00012329,2]
[400896376,1767857438171,-151.0,0.00012329,2]
[400896377,1767857438183,-151.0,0.00012329,2]
[400896378,1767857438193,-151.0,0.00012329,2]
[400896379,1767857438204,-151.0,0.00012329,2]
[400896380,1767857438214,-151.0,0.00012329,2]
[400896381,1767857438223,-151.0,0.00012329,2]
[400896382,1767857438233,-151.0,0.00012329,2]
[400896383,1767857438243,-151.0,0.00012329,2]
[400896384,1767857438253,-263.04550488,0.00012329,2]
[400896385,1767857438262,-151.0,0.00012329,2]
[400896386,1767857438272,-151.0,0.00012329,2]
[400896387,1767857438282,-151.0,0.00012329,2]
[400896388,1767857438292,-151.0,0.00012329,2]
[400896389,1767857438301,-151.0,0.00012329,2]
[400896390,1767857438311,-151.0,0.00012329,2]
[400896391,1767857438321,-151.0,0.00012329,2]
[400896392,1767857438330,-151.0,0.00012329,2]
[400896393,1767857438340,-151.0,0.00012329,2]
[400896394,1767857438350,-151.0,0.00012329,2]
[400896395,1767857438360,-151.0,0.00012329,2]
[400896396,1767857438371,-1000.0,0.00012329,2]
[400896397,1767857438381,-33580.3823,0.00012329,2]
[400896398,1767857438391,-246.55,0.00012422,2]
[400896399,1767857438403,-2018.55,0.00012425,2]
[400896402,1767857438413,-200.0,0.00012452,2]
[400896404,1767857438423,-13392.66,0.00012488,2]
[400896407,1767857438433,-500.0,0.00012575,2]
[400896410,1767857438444,-861.2,0.00012575,2]
[400896411,1767857438453,-200.0,0.00012577,2]
[400896414,1767857438463,-8882.54,0.00012577,2]
[400896416,1767857438472,-299.99,0.00012577,2]
[400896418,1767857438481,-5884.67,0.00012577,2]
[400896419,1767857438491,-999.99,0.00012577,2]
[400896421,1767857438500,-7905.49,0.00012577,2]
[400896423,1767857438510,-5708.28,0.00012577,2]
[400896426,1767857438521,-1465.64,0.00012577,2]
[400896427,1767857438530,-2621.34,0.00012577,2]
[400896429,1767857438540,-84023.7,0.00012577,2]
[400896431,1767857438549,-1411.4358853,0.00012605,2]
[400896433,1767857438558,-15988.33,0.00012615,2]
[400896435,1767857438568,-2095.37,0.00012615,2]
[400896437,1767857438577,-150.99,0.00012615,2]
[400896439,1767857438586,-9999.99,0.00012615,2]
[400896442,1767857438595,-200.0,0.00012657,2]
[400896443,1767857438605,-548.67,0.000127,2]
[400896445,1767857438615,-200.0,0.00012703,2]
[400896447,1767857438624,-9999.99,0.00012703,2]
[400896449,1767857438633,-150.99,0.00012703,2]
[400896451,1767857438643,-337.42,0.00012703,2]
[400896453,1767857438652,-9999.99,0.00012703,2]
[400896455,1767857438662,-200.0,0.00012784,2]
[400896457,1767857438671,-17120.08999858,0.00012824,2]
[400896460,1767857438682,-200.0,0.0001283,2]
[400896461,1767857438691,-500.0,0.00012849,2]
[400896464,1767857438702,-15364.73579307,0.00012859,2]
[400896466,1767857438713,-200.0,0.00012877,2]
[400896468,1767857438726,-200.0,0.00012911,2]
[400896470,1767857438736,-233.13011962,0.00012979,2]
[400896472,1767857438745,-500.0,0.00013014,2]
[400896474,1767857438754,-200.0,0.00013041,2]
[400896476,1767857438764,-3784.73085049,0.0001305,2]
[400896478,1767857438773,-500.0,0.00013069,2]
[400896480,1767857438783,-222.12982038,0.0001307,2]
[400896482,1767857438792,-500.0,0.0001307,2]
[400896484,1767857438802,-500.0,0.0001307,2]
[400896486,1767857438812,-457.10042703,0.00013123,2]
[400896488,1767857438822,-500.0,0.00013124,2]
[400896490,1767857438832,-500.0,0.00013125,2]
[400896492,1767857438842,-500.0,0.00013125,2]
[400896494,1767857438852,-200.0,0.00013171,2]
[400896496,1767857438861,-500.0,0.00013178,2]
[400896498,1767857438871,-482.10117033,0.0001318,2]
[400896500,1767857438881,-500.0,0.0001318,2]
[400896502,1767857438891,-500.0,0.00013233,2]
[400896505,1767857438901,-500.0,0.00013234,2]
[400896507,1767857438911,-600.0,0.00013242,2]
[400896509,1767857438921,-240.4,0.00013242,2]
[400896511,1767857438930,-150.0,0.00013255,2]
[400896513,1767857438940,-150.0,0.00013255,2]
[400896515,1767857438951,-203.41974767,0.00013255,2]
[400896517,1767857438961,-150.0,0.00013255,2]
[400896519,1767857438971,-153.19668317,0.00013255,2]
[400896521,1767857438981,-500.0,0.00013255,2]
[400896523,1767857438991,-500.0,0.00013255,2]
[400896525,1767857439001,-500.0,0.00013255,2]
[400896527,1767857439010,-150.0,0.00013255,2]
[400896529,1767857439023,-500.0,0.00013255,2]
[400896531,1767857439033,-150.49525617,0.00013255,2]
[400896533,1767857439048,-150.0,0.00013255,2]
[400896535,1767857439058,-150.0,0.00013255,2]
[400896537,1767857439068,-150.0,0.00013255,2]
[400896539,1767857439078,-288.61019467,0.00013255,2]
[400896541,1767857439087,-500.0,0.00013255,2]
[400896543,1767857439097,-150.0,0.00013255,2]
[400896546,1767857439111,-500.0,0.00013288,2]
[400896548,1767857439121,-221.72177176,0.00013288,2]
[400896550,1767857439132,-1173.0,0.00013288,2]
[400896552,1767857439142,-500.0,0.00013289,2]
[400896554,1767857439152,-199.74900552,0.0001331,2]
[400896556,1767857439163,-150.0,0.0001331,2]
[400896558,1767857439173,-500.0,0.0001331,2]
[400896560,1767857439183,-500.0,0.0001331,2]
[400896562,1767857439192,-500.0,0.0001331,2]
[400896564,1767857439204,-500.0,0.0001331,2]
[400896566,1767857439214,-184.06920116,0.0001331,2]
[400896568,1767857439224,-231.03492311,0.0001331,2]
[400896570,1767857439234,-150.0,0.0001331,2]
[400896572,1767857439245,-500.0,0.0001331,2]
[400896574,1767857439255,-150.0,0.0001331,2]
[400896576,1767857439265,-255.0,0.00013316,2]
[400896578,1767857439274,-500.0,0.00013343,2]
[400896580,1767857439284,-1173.0,0.00013343,2]
[400896582,1767857439295,-500.0,0.00013344,2]
[400896584,1767857439305,-876.29583334,0.00013344,2]
[400896586,1767857439315,-150.0,0.00013365,2]
[400896639,1767857439810,-500.0,0.00013365,2]
[400896641,1767857439820,-500.0,0.00013365,2]
[400896643,1767857439829,-500.0,0.00013365,2]
[400896645,1767857439838,-500.0,0.00013365,2]
[400896647,1767857439847,-500.0,0.00013365,2]
[400896649,1767857439856,-150.0,0.00013365,2]
[400896651,1767857439866,-206.22263087,0.00013365,2]
[400896652,1767857439875,-4884.48728043,0.00013378,2]
[400896653,1767857439884,-500.0,0.00013398,2]
[400896654,1767857439894,-1173.0,0.00013398,2]
[400896655,1767857439903,-500.0,0.00013399,2]
[400896656,1767857439911,-500.0,0.00013419,2]
[400896657,1767857439921,-500.0,0.00013419,2]
[400896658,1767857439931,-500.0,0.00013419,2]
[400896659,1767857439940,-500.0,0.00013419,2]
[400896660,1767857439950,-500.0,0.00013419,2]
[400896661,1767857439959,-150.0,0.00013419,2]
[400896662,1767857439968,-1680.0,0.00013421,2]
[400896663,1767857439977,-420.0,0.00013421,2]
[400896664,1767857439985,-420.0,0.00013421,2]
[400896665,1767857439995,-300.0,0.00013451,2]
[400896666,1767857440004,-250.0,0.00013451,2]
[400896667,1767857440013,-1680.0,0.00013451,2]
[400896668,1767857440023,-303.08526023,0.00013451,2]
[400896670,1767857440032,-250.0,0.00013451,2]
[400896672,1767857440042,-195.0,0.00013451,2]
[400896674,1767857440051,-193.0,0.00013451,2]
[400896676,1767857440060,-195.0,0.00013452,2]
[400896678,1767857440069,-193.0,0.00013452,2]
[400896680,1767857440080,-300.0,0.00013452,2]
[400896682,1767857440089,-195.0,0.00013452,2]
[400896684,1767857440098,-500.0,0.00013452,2]
[400896686,1767857440108,-1173.0,0.00013452,2]
[400896688,1767857440123,-500.0,0.00013454,2]
[400896690,1767857440135,-17120.08999858,0.00013458,2]
[400896692,1767857440144,-500.0,0.00013474,2]
[400896694,1767857440154,-500.0,0.00013474,2]
[400896696,1767857440163,-500.0,0.00013474,2]
[400896698,1767857440174,-216.31193931,0.00013474,2]
[400896700,1767857440183,-500.0,0.00013474,2]
[400896702,1767857440192,-150.0,0.00013474,2]
[400896704,1767857440201,-15364.73579307,0.00013489,2]
[400896706,1767857440212,-787.25604664,0.000135,2]
[400896708,1767857440223,-500.0,0.00013507,2]
[400896710,1767857440232,-1173.0,0.00013507,2]
[400896712,1767857440241,-500.0,0.00013508,2]
[400896714,1767857440251,-219.97512683,0.00013529,2]
[400896716,1767857440260,-500.0,0.00013529,2]
[400896718,1767857440269,-500.0,0.00013529,2]
[400896720,1767857440278,-500.0,0.00013529,2]
[400896722,1767857440288,-189.0183163,0.00013529,2]
[400896724,1767857440297,-250.0,0.00013562,2]
[400896726,1767857440307,-195.0,0.00013562,2]
[400896728,1767857440316,-500.0,0.00013562,2]
[400896730,1767857440326,-1173.0,0.00013562,2]
[400896732,1767857440335,-500.0,0.00013563,2]
[400896734,1767857440344,-360.97,0.00013579,2]
[400896736,1767857440354,-500.0,0.00013584,2]
[400896738,1767857440363,-500.0,0.00013584,2]
[400896740,1767857440372,-500.0,0.00013584,2]
[400896742,1767857440382,-500.0,0.00013617,2]
[400896744,1767857440391,-1173.0,0.00013617,2]
[400896746,1767857440401,-500.0,0.00013618,2]
[400896748,1767857440410,-500.0,0.00013639,2]
[400896750,1767857440420,-500.0,0.00013639,2]
[400896753,1767857440429,-500.0,0.00013639,2]
[400896754,1767857440438,-500.0,0.00013672,2]
[400896757,1767857440448,-1173.0,0.00013672,2]
[400896759,1767857440458,-500.0,0.00013673,2]
[400896761,1767857440467,-500.0,0.00013693,2]
[400896762,1767857440476,-500.0,0.00013693,2]
[400896764,1767857440486,-500.0,0.00013693,2]
[400896766,1767857440496,-500.0,0.00013698,2]
[400896768,1767857440505,-500.0,0.00013698,2]
[400896771,1767857440516,-500.0,0.00013698,2]
[400896773,1767857440526,-184.55624416,0.00013698,2]
[400896775,1767857440535,-500.0,0.00013698,2]
[400896777,1767857440545,-500.0,0.00013698,2]
[400896779,1767857440554,-500.0,0.00013698,2]
[400896781,1767857440563,-500.0,0.00013698,2]
[400896783,1767857440572,-500.0,0.00013698,2]
[400896785,1767857440582,-500.0,0.00013698,2]
[400896787,1767857440591,-500.0,0.00013698,2]
[400896789,1767857440600,-500.0,0.00013698,2]
[400896791,1767857440609,-500.0,0.00013698,2]
[400896793,1767857440618,-500.0,0.00013698,2]
[400896795,1767857440627,-500.0,0.00013698,2]
[400896797,1767857440637,-500.0,0.00013698,2]
[400896799,1767857440646,-410.25491874,0.00013698,2]
[400896801,1767857440655,-500.0,0.00013698,2]
[400896803,1767857440664,-500.0,0.00013698,2]
[400896805,1767857440673,-500.0,0.00013698,2]
[400896807,1767857440682,-500.0,0.00013698,2]
[400896809,1767857440691,-500.0,0.00013698,2]
[400896811,1767857440702,-211.60955392,0.00013698,2]
[400896813,1767857440711,-200.0,0.00013699,2]
[400896815,1767857440721,-500.0,0.00013726,2]
[400896817,1767857440732,-1173.0,0.00013726,2]
[400896819,1767857440741,-500.0,0.00013728,2]
[400896821,1767857440750,-500.0,0.00013748,2]
[400896823,1767857440760,-500.0,0.00013748,2]
[400896825,1767857440769,-500.0,0.00013748,2]
[400896827,1767857440778,-471.85856957,0.00013781,2]
[400896829,1767857440788,-1173.0,0.00013781,2]
[400896831,1767857440797,-500.0,0.00013782,2]
[400896833,1767857440806,-233.13011962,0.00013799,2]
[400896835,1767857440816,-500.0,0.00013803,2]
[400896837,1767857440826,-500.0,0.00013803,2]
[400896839,1767857440836,-500.0,0.00013803,2]
[400896841,1767857440845,-1173.0,0.00013836,2]
[400896843,1767857440854,-500.0,0.00013837,2]
[400896845,1767857440863,-500.0,0.00013858,2]
[400896847,1767857440873,-500.0,0.00013858,2]
[400896849,1767857440882,-209.91190666,0.00013858,2]
[400896851,1767857440891,-1173.0,0.00013891,2]
[400896853,1767857440901,-500.0,0.00013892,2]
[400896855,1767857440910,-500.0,0.00013913,2]
[400896857,1767857440919,-500.0,0.00013913,2]
[400896859,1767857440928,-1173.0,0.00013946,2]
[400896861,1767857440938,-500.0,0.00013947,2]
[400896863,1767857440948,-500.0,0.00013967,2]
[400896865,1767857440957,-500.0,0.00013967,2]
[400896867,1767857440966,-500.0,0.0001397,2]
[400896869,1767857440976,-501.86313919,0.00014,2]
[400896871,1767857440986,-1173.0,0.00014,2]
[400896873,1767857440995,-500.0,0.00014002,2]
[400896875,1767857441005,-500.0,0.00014022,2]
[400896877,1767857441014,-236.20445804,0.00014022,2]
[400896879,1767857441025,-1173.0,0.00014055,2]
[400896881,1767857441035,-500.0,0.00014056,2]
[400896883,1767857441044,-440.06247596,0.00014077,2]
[400896885,1767857441053,-17120.08999858,0.00014093,2]
[400896887,1767857441063,-1173.0,0.0001411,2]
[400896889,1767857441072,-392.21018207,0.00014111,2]
[400896891,1767857441081,-15364.73579307,0.00014119,2]
[400896893,1767857441091,-1173.0,0.00014165,2]
[400896895,1767857441100,-1137.46071682,0.0001421,2]
[400896897,1767857441109,-1098.89233068,0.0001421,2]
[400896899,1767857441119,-1173.0,0.0001422,2]
[400896901,1767857441129,-876.29583334,0.00014255,2]
[400896903,1767857441142,-1173.0,0.00014274,2]
[400896905,1767857441151,-1173.0,0.00014329,2]
[400896908,1767857441160,-1173.0,0.00014384,2]
[400896910,1767857441171,-1173.0,0.00014439,2]
[400896912,1767857441180,-1173.0,0.00014493,2]
[400896913,1767857441189,-433.0,0.00014502,2]
[400896915,1767857441199,-1196.41648618,0.00014548,2]
[400896918,1767857441208,-1676.56,0.00014576,2]
[400896920,1767857441217,-451.90263959,0.0001461,2]
[400896922,1767857441227,-70618.69,0.00014611,2]
[400896923,1767857441237,-233.13011962,0.00014619,2]
[400896926,1767857441247,-916.35,0.00014709,2]
[400896928,1767857441257,-17120.08999858,0.00014727,2]
[400896930,1767857441267,-2351.0,0.00014729,2]
[400896931,1767857441276,-587.0,0.00014729,2]
[400896934,1767857441286,-587.0,0.00014729,2]
[400896935,1767857441295,-15364.73579307,0.00014749,2]
[400896937,1767857441305,-500.0,0.00014763,2]
[400896940,1767857441315,-500.0,0.00014763,2]
[400896942,1767857441324,-500.0,0.00014763,2]
[400896944,1767857441334,-500.0,0.00014763,2]
[400896946,1767857441344,-539.89725373,0.00014763,2]
[400896948,1767857441354,-500.0,0.00014763,2]
[400896950,1767857441363,-415.93260674,0.00014763,2]
[400896952,1767857441372,-500.0,0.00014763,2]
[400896953,1767857441391,-500.0,0.00014763,2]
[400896956,1767857441400,-500.0,0.00014763,2]
[400896958,1767857441410,-500.0,0.00014763,2]
[400896960,1767857441419,-500.44132788,0.00014763,2]
[400896961,1767857441428,-166.61911688,0.00014763,2]
[400896964,1767857441438,-500.0,0.00014763,2]
[400896966,1767857441448,-500.0,0.00014763,2]
[400896968,1767857441457,-486.22003068,0.00014763,2]
[400896970,1767857441466,-500.0,0.00014763,2]
[400896972,1767857441476,-500.0,0.00014763,2]
[400896974,1767857441486,-500.0,0.00014763,2]
[400896976,1767857441496,-500.0,0.00014763,2]
[400896978,1767857441505,-500.0,0.00014763,2]
[400896980,1767857441515,-500.0,0.00014763,2]
[400896982,1767857441526,-500.0,0.00014763,2]
[400896984,1767857441535,-165.70843486,0.00014763,2]
[400896986,1767857441546,-500.0,0.00014763,2]
[400896988,1767857441559,-500.0,0.00014763,2]
[400896990,1767857441580,-500.0,0.00014763,2]
[400896992,1767857441594,-500.0,0.00014763,2]
[400896994,1767857441604,-438.84534231,0.00014763,2]
[400896996,1767857441617,-500.0,0.00014763,2]
[400896998,1767857441628,-500.0,0.00014763,2]
[400897000,1767857441637,-500.0,0.00014763,2]
[400897002,1767857441647,-500.0,0.00014763,2]
[400897004,1767857441657,-332.64752003,0.00014763,2]
[400897006,1767857441666,-237.35203595,0.00014763,2]
[400897008,1767857441675,-500.0,0.00014763,2]
[400897010,1767857441684,-2351.0,0.00014796,2]
[400897012,1767857441693,-1165.52,0.00014829,2]
[400897014,1767857441702,-151.0,0.00014843,2]
[400897016,1767857441712,-1676.56,0.0001485,2]
[400897018,1767857441721,-199.19,0.00014874,2]
[400897020,1767857441730,-151.0,0.0001489,2]
[400897022,1767857441740,-151.0,0.0001489,2]